bitfinex/quotes_BTCUSD_20260308
["timestamp","ask_amount","ask_price","bid_price","bid_amount"]
[1773003871244,0.00144,67180.0,67172.0,0.00026483]
[1773003871455,0.00144,67180.0,67173.0,0.02824468]
[1773003871746,0.00148,67179.0,67172.0,0.00026483]
[1773003873571,0.00148,67179.0,67173.0,0.07443466]
[1773003874315,0.00133,67179.0,67173.0,0.07443466]
[1773003880288,0.02808576,67178.0,67172.0,0.08469991]
[1773003881041,0.07575821,67179.0,67172.0,0.08469991]
[1773003881691,0.00133,67179.0,67172.0,0.08469991]
[1773003882092,0.07575822,67179.0,67172.0,0.08469991]
[1773003882540,0.00133,67179.0,67172.0,0.08469991]
[1773003882964,0.00155001,67179.0,67172.0,0.08469991]
[1773003885348,0.00155001,67179.0,67172.0,0.01026483]
[1773003885349,0.07597844,67179.0,67172.0,0.01026483]
[1773003885760,0.07597844,67179.0,67172.0,0.08470034]
[1773003886089,0.00148,67178.0,67172.0,0.08470034]
[1773003887281,0.05900797,67183.0,67173.0,0.18373905]
[1773003887519,0.14812925,67192.0,67177.0,0.18373905]
[1773003887648,0.00148,67191.0,67181.0,0.18373905]
[1773003887847,0.00148,67191.0,67182.0,0.02849796]
[1773003889566,0.02808576,67196.0,67182.0,0.02849796]
[1773003889567,0.00023,67208.0,67186.0,0.02849796]
[1773003889798,0.00171,67208.0,67189.0,0.18373905]
[1773003890024,0.00163,67207.0,67193.0,0.18373905]
[1773003890225,0.00148,67205.0,67196.0,0.02849796]
[1773003890423,0.00148,67205.0,67198.0,0.02849796]
[1773003890593,0.00148,67205.0,67199.0,0.02849796]
[1773003891197,0.00148,67205.0,67199.0,0.02856279]
[1773003891627,0.00148,67212.0,67202.0,0.18373905]
[1773003891829,0.07438646,67217.0,67203.0,0.02849796]
[1773003891830,0.00148,67211.0,67203.0,0.02849796]
[1773003892389,0.00148,67210.0,67203.0,0.02849796]
[1773003893750,0.00148,67210.0,67204.0,0.07440033]
[1773003893949,0.00148,67210.0,67204.0,0.10289829]
[1773003894299,0.00148,67210.0,67202.0,0.25814072]
[1773003894300,0.00148,67210.0,67202.0,0.07440167]
[1773003895429,0.00148,67210.0,67195.0,0.07440976]
[1773003895430,0.18898442,67207.0,67195.0,0.07440976]
[1773003895623,0.07439922,67205.0,67195.0,0.0748059]
[1773003895869,0.02956576,67204.0,67195.0,0.0748059]
[1773003896434,0.00148,67204.0,67197.0,0.18373905]
[1773003896630,0.00148,67204.0,67200.0,0.02849796]
[1773003896833,0.07439811,67208.0,67200.0,0.02849796]
[1773003897033,0.00148,67206.0,67200.0,0.02849796]
[1773003897597,0.11835382,67233.0,67196.0,0.03234816]
[1773003897817,0.05900797,67230.0,67220.0,0.07438218]
[1773003898026,0.05900797,67230.0,67205.0,0.02997796]
[1773003898027,0.02808576,67228.0,67205.0,0.02997796]
[1773003898254,0.08709373,67220.0,67206.0,0.00148]
[1773003898407,0.08857373,67220.0,67206.0,0.00148]
[1773003898788,0.00022001,67217.0,67207.0,0.00148]
[1773003898959,0.00148,67220.0,67208.0,0.21223701]
[1773003899164,0.00148,67220.0,67209.0,0.02849796]
[1773003899997,0.00148,67220.0,67210.0,0.07439369]
[1773003900143,0.00148,67220.0,67210.0,0.07422537]
[1773003901728,0.591701,67220.0,67186.0,0.0002348]
[1773003902080,0.21707018,67208.0,67192.0,0.07441362]
[1773003902255,0.02808576,67205.0,67192.0,0.06204484]
[1773003902425,0.02795576,67205.0,67192.0,0.049714]
[1773003902646,0.02795576,67205.0,67192.0,0.02511211]
[1773003902848,0.07439021,67214.0,67193.0,0.1876018]
[1773003903051,0.00148,67213.0,67195.0,0.1876018]
[1773003903247,0.00148,67213.0,67192.0,0.06214996]
[1773003903248,0.07439021,67214.0,67196.0,0.1876018]
[1773003903491,0.02956576,67213.0,67197.0,0.02849796]
[1773003903721,0.02956576,67213.0,67196.0,0.1876018]
[1773003904103,0.02808576,67211.0,67197.0,0.07440808]
[1773003904425,0.02808576,67207.0,67197.0,0.07440808]
[1773003904586,0.02808576,67205.0,67197.0,0.07440808]
[1773003905714,0.02830577,67205.0,67197.0,0.07440808]
[1773003906302,0.02960324,67204.0,67188.0,0.07441362]
[1773003907062,0.02960324,67204.0,67188.0,0.03921732]
[1773003907264,0.18146029,67204.0,67187.0,0.06866906]
[1773003907468,0.02960324,67201.0,67187.0,0.05698531]
[1773003907662,0.18146029,67199.0,67186.0,0.07465285]
[1773003907816,0.18185667,67199.0,67186.0,0.07465285]
[1773003908410,0.07440697,67198.0,67186.0,0.07465285]
[1773003908955,0.25586726,67198.0,67186.0,0.07465285]
[1773003909562,0.25586726,67198.0,67186.0,0.07465497]
[1773003910374,0.25586726,67198.0,67174.0,0.12393241]
[1773003910375,0.18146029,67195.0,67174.0,0.12393241]
[1773003910582,0.18146029,67193.0,67174.0,0.04801885]
[1773003911975,0.18146029,67193.0,67174.0,0.04828055]
[1773003912562,0.17713725,67190.0,67174.0,0.0004617]
[1773003912762,0.18146029,67189.0,67172.0,0.04781885]
[1773003912984,0.18146029,67187.0,67172.0,0.02531583]
[1773003913183,0.18146029,67187.0,67172.0,0.00303269]
[1773003913388,0.18146029,67185.0,67168.0,0.01774115]
[1773003913583,0.18146029,67185.0,67167.0,0.05895943]
[1773003913841,0.02866581,67184.0,67168.0,0.0289698]
[1773003914372,0.02866581,67184.0,67174.0,0.01]
[1773003914777,0.07442358,67183.0,67174.0,0.01]
[1773003914982,0.00148,67182.0,67174.0,0.01]
[1773003916584,0.18146029,67180.0,67165.0,0.0002]
[1773003916775,0.07442912,67178.0,67165.0,0.0002]
[1773003917426,0.10309493,67178.0,67165.0,0.0002]
[1773003918074,0.10309493,67178.0,67165.0,0.00031901]
[1773003918839,0.10309493,67178.0,67165.0,0.00027901]
[1773003919981,0.10309493,67178.0,67162.0,0.10341643]
[1773003920157,0.10309493,67178.0,67163.0,0.0289698]
[1773003920361,0.10309493,67178.0,67165.0,0.0002]
[1773003921087,0.5998,67165.0,67163.0,0.0289698]
[1773003921444,0.5998,67165.0,67164.0,0.0289698]
[1773003923006,0.59949389,67165.0,67164.0,0.0289698]
[1773003923596,0.59949389,67165.0,67164.0,0.00660265]
[1773003924211,0.59949389,67165.0,67164.0,0.07444464]
[1773003924414,0.07591592,67172.0,67164.0,0.07444464]
[1773003924621,0.00148,67172.0,67165.0,0.0289698]
[1773003925137,0.00148,67172.0,67165.0,0.10341234]
[1773003925491,0.00132691,67172.0,67165.0,0.10341234]
[1773003926096,0.00132691,67172.0,67165.0,0.07444254]
[1773003926299,0.02866581,67170.0,67154.0,0.0002499]
[1773003926524,0.02866581,67164.0,67154.0,0.0002499]
[1773003926725,0.03014581,67163.0,67154.0,0.0002499]
[1773003926926,0.02866581,67161.0,67148.0,6.784e-05]
[1773003927145,0.07445018,67159.0,67148.0,6.784e-05]
[1773003927317,0.02866581,67158.0,67148.0,6.784e-05]
[1773003927518,0.18146029,67156.0,67148.0,6.784e-05]
[1773003927740,0.02866581,67154.0,67148.0,6.784e-05]
[1773003927938,0.02866581,67154.0,67138.0,0.07447317]
[1773003927939,0.01118549,67153.0,67139.0,0.07447202]
[1773003928182,0.01118549,67153.0,67140.0,0.0001079]
[1773003929345,0.01118549,67153.0,67136.0,0.00171]
[1773003929346,0.1774574,67150.0,67126.0,0.00148]
[1773003929727,0.1774574,67150.0,67095.0,0.10995003]
[1773003929728,0.02866581,67146.0,67095.0,0.10995003]
[1773003929935,0.02851269,67138.0,67113.0,0.0289698]
[1773003930166,0.18146029,67135.0,67113.0,0.0289698]
[1773003930373,0.02866581,67128.0,67113.0,0.0289698]
[1773003930568,0.01118619,67134.0,67112.0,0.00023]
[1773003930569,0.18146029,67125.0,67112.0,0.00023]
[1773003930684,0.18146029,67123.0,67112.0,0.00023]
[1773003930880,0.00148,67122.0,67113.0,0.0289698]
[1773003931122,0.00148,67121.0,67112.0,0.00162758]
[1773003931323,0.07449455,67119.0,67112.0,0.00162758]
[1773003931543,0.07449455,67119.0,67107.0,0.00047]
[1773003931716,0.02851264,67117.0,67107.0,0.00047]
[1773003931894,0.02835946,67117.0,67107.0,0.00047]
[1773003932110,0.1035564,67119.0,67107.0,0.00047]
[1773003932299,0.02866581,67118.0,67107.0,0.00047]
[1773003932912,0.02866581,67117.0,67107.0,0.00047]
[1773003933235,0.02866581,67115.0,67107.0,0.00047]
[1773003933437,0.07582691,67114.0,67107.0,0.00047]
[1773003933845,0.00148,67113.0,67107.0,0.00047]
[1773003934071,0.0013268,67113.0,67107.0,0.00047]
[1773003934279,0.0013268,67113.0,67107.0,0.00067]
[1773003935204,0.00148,67112.0,67107.0,0.00067]
[1773003935781,0.07450343,67111.0,67108.0,0.0289698]
[1773003935993,0.07435022,67111.0,67108.0,0.0289698]
[1773003936187,0.07435022,67111.0,67107.0,0.00067]
[1773003936545,0.00148,67110.0,67107.0,0.0296398]
[1773003936761,0.00132683,67110.0,67107.0,0.0296398]
[1773003937134,0.00132683,67110.0,67107.0,0.00067]
[1773003937503,0.00132683,67110.0,67107.0,0.07517729]
[1773003937704,0.00132683,67110.0,67107.0,0.00067]
[1773003938361,0.00039604,67119.0,67107.0,0.00067]
[1773003938565,0.07448012,67132.0,67111.0,0.17920894]
[1773003938763,0.00148,67129.0,67115.0,0.17920894]
[1773003938994,0.00148,67129.0,67116.0,0.03009969]
[1773003940046,0.00148,67129.0,67117.0,0.07449677]
[1773003940047,0.07448456,67128.0,67117.0,0.07449677]
[1773003940258,0.07596422,67129.0,67118.0,0.03009969]
[1773003940635,0.07596422,67129.0,67118.0,0.01891065]
[1773003940835,0.07596422,67129.0,67118.0,0.00772148]
[1773003942248,0.07596422,67129.0,67119.0,0.07449455]
[1773003942813,0.07596422,67129.0,67119.0,0.10459424]
[1773003943304,0.07596422,67129.0,67118.0,0.07469535]
[1773003944282,0.07448247,67130.0,67119.0,0.17920894]
[1773003944503,0.00148,67128.0,67120.0,0.03009969]
[1773003945050,0.00148,67128.0,67110.0,0.07450438]
[1773003945051,0.17650123,67124.0,67110.0,0.07450438]
[1773003945200,0.03023081,67123.0,67108.0,0.0745064]
[1773003945386,0.03023081,67121.0,67108.0,0.0745064]
[1773003945734,0.00148,67120.0,67108.0,0.0745064]
[1773003945903,0.00148,67120.0,67109.0,0.07450554]
[1773003946269,0.07449455,67119.0,67106.0,0.11053746]
[1773003946474,0.03023081,67118.0,67106.0,0.005929]
[1773003946722,0.03023081,67118.0,67106.0,0.0804379]
[1773003947093,0.03023081,67118.0,67106.0,0.005929]
[1773003947772,0.03023081,67118.0,67107.0,0.07517745]
[1773003947974,0.03023081,67118.0,67107.0,0.00067]
[1773003948179,0.03047661,67118.0,67107.0,0.00067]
[1773003948385,0.07449677,67117.0,67107.0,0.00067]
[1773003948586,0.03023081,67116.0,67107.0,0.00067]
[1773003949016,0.0744934,67121.0,67108.0,0.17920894]
[1773003949227,0.07470659,67136.0,67108.0,0.17920894]
[1773003949228,0.00148,67120.0,67111.0,0.03009969]
[1773003949403,0.00148,67120.0,67115.0,0.03009969]
[1773003949636,0.00148,67120.0,67117.0,0.03009969]
[1773003949836,0.00555,67133.0,67120.0,0.17920894]
[1773003950173,0.00148,67132.0,67125.0,0.03009969]
[1773003950513,0.07447718,67135.0,67126.0,0.10458647]
[1773003950711,0.00148,67131.0,67127.0,0.03009969]
[1773003951249,0.00148,67130.0,67127.0,0.01891075]
[1773003951452,0.08566421,67134.0,67127.0,0.01891075]
[1773003951453,0.01118619,67134.0,67127.0,0.01891075]
[1773003951690,0.00148,67133.0,67127.0,0.01891075]
[1773003952162,0.01118619,67134.0,67127.0,0.01891075]
[1773003952366,0.00148,67133.0,67127.0,0.01891075]
[1773003952766,0.00148,67133.0,67128.0,0.07448456]
[1773003952931,0.00148,67133.0,67128.0,0.06329595]
[1773003953268,0.00148,67132.0,67129.0,0.01891109]
[1773003953570,0.00148,67132.0,67130.0,0.03009969]
[1773003953719,0.00148,67132.0,67128.0,0.06329595]
[1773003954522,0.00148,67132.0,67128.0,0.0634149]
[1773003954729,0.00148,67132.0,67117.0,0.07449677]
[1773003954934,0.07607942,67132.0,67118.0,0.17920894]
[1773003955132,0.07607942,67132.0,67118.0,0.19947159]
[1773003956754,0.07607942,67132.0,67118.0,0.20047159]
[1773003957155,0.07607942,67132.0,67119.0,0.07449455]
[1773003957902,0.07629943,67132.0,67119.0,0.07449455]
[1773003958611,0.10653024,67132.0,67119.0,0.07449455]
[1773003960254,0.00022001,67139.0,67120.0,0.17920894]
[1773003960436,0.00148,67138.0,67123.0,0.01994018]
[1773003960610,0.00148,67138.0,67126.0,0.17920894]
[1773003960810,0.00148,67138.0,67128.0,0.01994018]
[1773003961239,0.07595409,67138.0,67129.0,0.07448345]
[1773003961439,0.07447409,67138.0,67129.0,0.06074241]
[1773003961752,0.00148,67137.0,67129.0,0.06074241]
[1773003962056,0.00148,67137.0,67129.0,0.08116496]
[1773003962273,0.00148,67137.0,67129.0,0.06323547]
[1773003962489,0.07446903,67142.0,67129.0,0.04889187]
[1773003962618,0.00148,67136.0,67130.0,0.00922274]
[1773003962832,0.00022001,67146.0,67130.0,0.00922274]
[1773003962833,0.00148,67135.0,67130.0,0.15579315]
[1773003963024,0.00148,67136.0,67131.0,0.00922274]
[1773003963237,0.00148,67136.0,67132.0,0.07448012]
[1773003963572,0.00148,67136.0,67132.0,0.06312162]
[1773003963775,0.00148,67136.0,67132.0,0.04074817]
[1773003963985,0.00148,67136.0,67132.0,0.01837467]
[1773003964552,0.00148,67136.0,67131.0,0.07448012]
[1773003964753,0.00148,67136.0,67132.0,0.07448012]
[1773003964974,0.00148,67136.0,67132.0,0.06329266]
[1773003965175,0.00148,67136.0,67132.0,0.05210528]
[1773003965399,0.00148,67136.0,67130.0,0.07448012]
[1773003966326,0.03005514,67132.0,67119.0,0.07449348]
[1773003966612,0.03005514,67130.0,67120.0,0.0746119]
[1773003966802,0.03138514,67129.0,67120.0,0.0746119]
[1773003967393,0.03138514,67129.0,67120.0,0.00011874]
[1773003967599,0.00133,67129.0,67120.0,0.00011874]
[1773003968445,0.07581346,67129.0,67120.0,0.00011874]
[1773003968625,0.00133,67129.0,67116.0,0.00754425]
[1773003968841,0.00144907,67129.0,67115.0,0.17883947]
[1773003968999,0.00144907,67129.0,67115.0,0.14808584]
[1773003969829,0.00144907,67129.0,67117.0,0.07449677]
[1773003970038,0.00144907,67129.0,67117.0,0.04765653]
[1773003970351,0.00144907,67129.0,67117.0,0.02618434]
[1773003971314,0.07593319,67129.0,67117.0,0.07449677]
[1773003973027,0.10877325,67129.0,67117.0,0.07449677]
[1773003974500,0.00144907,67129.0,67117.0,0.07449677]
[1773003975322,0.00144907,67129.0,67117.0,0.07469677]
[1773003978626,0.00144907,67129.0,67118.0,0.17883947]
[1773003979378,0.00144907,67129.0,67119.0,0.07449455]
[1773003981395,0.03428913,67129.0,67117.0,0.0002]
[1773003982152,0.00144907,67129.0,67117.0,0.0002]
[1773003982828,0.00011907,67129.0,67117.0,0.0002]
[1773003983152,0.00148,67128.0,67118.0,0.17883947]
[1773003983458,0.00148,67128.0,67119.0,0.07449455]
[1773003984355,0.00148,67128.0,67123.0,0.00015]
[1773003987331,0.07447821,67134.0,67123.0,0.00015]
[1773003987532,0.00148,67136.0,67125.0,0.07448789]
[1773003987728,0.00148,67136.0,67125.0,0.07458841]
[1773003988909,0.00148,67136.0,67125.0,0.25342788]
[1773003991331,0.16759572,67135.0,67104.0,0.36947816]
[1773003991485,0.17753302,67130.0,67107.0,0.07517777]
[1773003991696,0.03284006,67126.0,67107.0,0.00067]
[1773003992038,0.03284006,67120.0,67104.0,0.0002]
[1773003992231,0.07448567,67127.0,67104.0,0.0002]
[1773003992232,0.16759572,67117.0,67104.0,0.07471081]
[1773003992538,0.07448567,67127.0,67104.0,0.07471081]
[1773003992539,0.03284006,67114.0,67104.0,0.07471081]
[1773003992737,0.03284006,67112.0,67104.0,0.07471081]
[1773003992938,0.03284006,67112.0,67110.0,0.0002]
[1773003993363,0.16759572,67115.0,67110.0,0.0002]
[1773003993364,0.00148,67111.0,67110.0,0.0002]
[1773003993660,0.00158045,67111.0,67110.0,0.0002]
[1773003994721,0.03284006,67130.0,67110.0,0.0002]
[1773003994928,0.16964336,67126.0,67110.0,0.0005958]
[1773003995159,0.03284006,67125.0,67110.0,0.0005958]
[1773003995359,0.03284006,67124.0,67110.0,0.0005958]
[1773003995756,0.03284006,67122.0,67110.0,0.0005958]
[1773003998214,0.03284006,67120.0,67110.0,0.0005958]
[1773003999814,0.00148,67119.0,67110.0,0.0005958]
[1773004000421,0.07449566,67118.0,67110.0,0.0005958]
[1773004001269,0.03284006,67117.0,67110.0,0.0005958]
[1773004001614,0.07449566,67118.0,67110.0,0.07510029]
[1773004002434,0.07449566,67118.0,67110.0,0.0005958]
[1773004002732,0.00045001,67136.0,67110.0,0.07510017]
[1773004002953,0.00045001,67136.0,67113.0,0.1289816]
[1773004003165,0.0746213,67140.0,67117.0,0.16578834]
[1773004003377,0.00148,67139.0,67121.0,0.16578834]
[1773004003588,0.16964336,67144.0,67112.0,0.00023]
[1773004003589,0.07468886,67143.0,67123.0,0.16578834]
[1773004003817,0.07468886,67143.0,67112.0,0.00023]
[1773004003818,0.00148,67142.0,67126.0,0.02999045]
[1773004004023,0.00022001,67143.0,67130.0,0.02999045]
[1773004004233,0.00022001,67143.0,67120.0,0.00148]
[1773004004234,0.02977257,67140.0,67120.0,0.00148]
[1773004004501,0.00148,67139.0,67124.0,0.02999045]
[1773004004863,0.00148,67139.0,67122.0,0.07449122]
[1773004004864,0.00022001,67145.0,67125.0,0.16578834]
[1773004005064,0.00022001,67145.0,67128.0,0.02999045]
[1773004005065,0.07468593,67145.0,67128.0,0.02999045]
[1773004005267,0.00148,67144.0,67129.0,0.02999045]
[1773004005464,0.00148,67143.0,67131.0,0.02999045]
[1773004006182,0.02977257,67141.0,67123.0,0.02999045]
[1773004006358,0.16964336,67138.0,67122.0,0.07449122]
[1773004006562,0.16964336,67133.0,67122.0,0.00011907]
[1773004006738,0.02977257,67130.0,67114.0,0.07449986]
[1773004006944,0.19941593,67127.0,67114.0,0.07449986]
[1773004007141,0.00148,67126.0,67114.0,0.05657497]
[1773004008228,0.00148,67126.0,67115.0,0.02999045]
[1773004008430,0.07447194,67140.0,67120.0,0.02999045]
[1773004008688,0.00148,67139.0,67122.0,0.02999045]
[1773004008891,0.19941593,67138.0,67122.0,0.02999045]
[1773004009313,0.00148,67137.0,67122.0,0.02999045]
[1773004009726,0.00022001,67126.0,67122.0,0.02999045]
[1773004010039,0.00148,67131.0,67122.0,0.02999045]
[1773004010585,0.00148,67131.0,67123.0,0.10448056]
[1773004012072,0.00148,67131.0,67123.0,0.07449011]
[1773004012271,0.075962,67131.0,67123.0,0.07449011]
[1773004012835,0.00148,67131.0,67120.0,0.07461221]
[1773004013054,0.00148,67131.0,67120.0,0.10460266]
[1773004013370,0.00148,67131.0,67120.0,0.07461221]
[1773004013570,0.00148,67131.0,67120.0,0.10460266]
[1773004013941,0.00148,67131.0,67121.0,0.02999045]
[1773004014546,0.07447425,67138.0,67122.0,0.16578834]
[1773004014770,0.00148,67137.0,67123.0,0.02999045]
[1773004015133,0.07447425,67138.0,67123.0,0.02999045]
[1773004015341,0.00148,67137.0,67125.0,0.02999045]
[1773004015799,0.07447425,67138.0,67125.0,0.02999045]
[1773004016002,0.00148,67136.0,67125.0,0.02999045]
[1773004016304,0.07447425,67138.0,67125.0,0.02999045]
[1773004016513,0.00148,67135.0,67125.0,0.02999045]
[1773004016850,0.00148,67134.0,67125.0,0.02999045]
[1773004017494,0.00148,67133.0,67126.0,0.14233493]
[1773004017843,0.00148,67132.0,67126.0,0.14233493]
[1773004018266,0.07469526,67137.0,67126.0,0.14233493]
[1773004018463,0.00148,67136.0,67126.0,0.14233493]
[1773004018929,0.00148,67135.0,67126.0,0.14233493]
[1773004019085,0.00148,67135.0,67126.0,0.14216636]
[1773004019903,0.07595699,67135.0,67126.0,0.14216636]
[1773004020103,0.00148,67135.0,67126.0,0.14216636]
[1773004020301,0.07447589,67136.0,67126.0,0.14216636]
[1773004020524,0.00148,67135.0,67126.0,0.14216636]
[1773004020926,0.00148,67134.0,67126.0,0.14216636]
[1773004021135,0.07469526,67137.0,67126.0,0.14216636]
[1773004021331,0.00022001,67145.0,67129.0,0.06784815]
[1773004021506,0.00148,67148.0,67131.0,0.06784815]
[1773004021695,0.07445242,67157.0,67127.0,0.06784815]
[1773004021891,0.07445881,67152.0,67128.0,0.06784815]
[1773004022096,0.16964336,67151.0,67130.0,0.06784815]
[1773004022423,0.16964336,67153.0,67132.0,0.06784815]
[1773004022772,0.16964336,67149.0,67131.0,0.00148]
[1773004023047,0.16964336,67149.0,67132.0,0.06784815]
[1773004025580,0.23397493,67148.0,67134.0,0.06784815]
[1773004025992,0.00148,67147.0,67134.0,0.06784815]
[1773004027195,0.00148,67146.0,67134.0,0.06784815]
[1773004027601,0.07446238,67148.0,67135.0,0.0744768]
[1773004027808,0.00148,67145.0,67136.0,0.06784815]
[1773004030074,0.00148,67145.0,67128.0,0.07448397]
[1773004030075,0.07446681,67144.0,67125.0,0.07448678]
[1773004030269,0.15951255,67143.0,67127.0,0.00148]
[1773004030471,0.15951255,67143.0,67126.0,0.07552637]
[1773004030692,0.15951255,67143.0,67126.0,0.07700637]
[1773004031363,0.15951255,67143.0,67126.0,0.14485452]
[1773004032230,0.15951255,67141.0,67126.0,0.14337452]
[1773004032425,0.15951255,67141.0,67126.0,0.14485452]
[1773004033904,0.15951255,67141.0,67126.0,0.14337452]
[1773004034634,0.15951255,67139.0,67126.0,0.14337452]
[1773004034854,0.00148,67138.0,67126.0,0.14337452]
[1773004035011,0.00148,67138.0,67123.0,0.00015]
[1773004035212,0.15951255,67137.0,67123.0,0.00015]
[1773004036186,0.15951255,67137.0,67123.0,0.0746401]
[1773004036787,0.15951255,67135.0,67123.0,0.00015]
[1773004037030,0.00148,67134.0,67124.0,0.03392408]
[1773004038501,0.00148,67134.0,67124.0,0.03047114]
[1773004039664,0.07447901,67133.0,67123.0,0.00015]
[1773004039896,0.07447901,67133.0,67123.0,0.07463985]
[1773004040294,0.07447901,67133.0,67123.0,0.10524819]
[1773004040498,0.07447901,67133.0,67123.0,0.03075834]
[1773004040722,0.07447901,67133.0,67123.0,0.10524791]
[1773004041273,0.07447901,67133.0,67124.0,0.03060834]
[1773004042493,0.07595901,67134.0,67126.0,0.03060834]
[1773004042731,0.07595901,67134.0,67123.0,0.00015]
[1773004042929,0.07595901,67134.0,67123.0,0.1052484]
[1773004043140,0.07595901,67134.0,67124.0,0.03060834]
[1773004043723,0.07447901,67134.0,67124.0,0.03060834]
[1773004043947,0.07595901,67134.0,67124.0,0.03060834]
[1773004045255,0.15951255,67133.0,67120.0,0.07609197]
[1773004045841,0.15951255,67133.0,67121.0,0.03060834]
[1773004047287,0.07448012,67132.0,67122.0,0.07449122]
[1773004050824,0.07448012,67132.0,67122.0,0.10509956]
[1773004055875,0.07448012,67132.0,67122.0,0.10529956]
[1773004056075,0.07448012,67132.0,67122.0,0.07469122]
[1773004056274,0.07448012,67132.0,67123.0,0.03060834]
[1773004058587,0.07448012,67132.0,67123.0,0.03043974]
[1773004059026,0.07448012,67132.0,67123.0,0.10492969]
[1773004059405,0.07448012,67132.0,67123.0,0.03043974]
[1773004063689,0.07448012,67133.0,67123.0,0.07448998]
[1773004063883,0.07448012,67133.0,67124.0,0.03237615]
[1773004064085,0.16926012,67132.0,67122.0,0.0002]
[1773004064261,0.16926012,67132.0,67117.0,0.07449615]
[1773004064262,0.16142555,67130.0,67114.0,0.07469899]
[1773004064464,0.16142555,67128.0,67114.0,0.0002]
[1773004064689,0.16290555,67127.0,67114.0,0.0002]
[1773004065083,0.16290555,67127.0,67123.0,0.0002]
[1773004065280,0.16290555,67127.0,67116.0,0.0002]
[1773004065715,0.07448678,67126.0,67116.0,0.0002]
[1773004066568,0.00780942,67125.0,67109.0,0.0002]
[1773004066771,0.16142555,67119.0,67104.0,0.03237615]
[1773004066939,0.01208215,67118.0,67104.0,0.03277195]
[1773004068606,0.07449677,67117.0,67105.0,0.07451009]
[1773004068818,0.00830977,67116.0,67106.0,0.03237615]
[1773004069644,0.00148,67118.0,67108.0,0.03237615]
[1773004070254,0.00148,67118.0,67105.0,0.07451009]
[1773004070255,0.07448249,67130.0,67110.0,0.03237615]
[1773004070457,0.07596249,67130.0,67113.0,0.16174527]
[1773004070659,0.07596249,67130.0,67117.0,0.07449677]
[1773004070900,0.07596249,67130.0,67118.0,0.03237615]
[1773004071695,0.07596249,67130.0,67118.0,0.02737615]
[1773004072274,0.07596249,67130.0,67118.0,0.02237615]
[1773004074297,0.07596249,67130.0,67119.0,0.07449455]
[1773004074465,0.07596249,67130.0,67120.0,0.03237615]
[1773004075551,0.07596249,67130.0,67120.0,0.03220755]
[1773004075683,0.16290555,67129.0,67118.0,0.0002]
[1773004075891,0.18097763,67129.0,67118.0,0.0002]
[1773004076083,0.18097763,67129.0,67116.0,0.00148]
[1773004076699,0.18097763,67129.0,67115.0,0.07449882]
[1773004076700,0.23591011,67128.0,67115.0,0.07449882]
[1773004077307,0.23591011,67128.0,67114.0,0.10687619]
[1773004077762,0.23591011,67128.0,67114.0,0.03237615]
[1773004078034,0.16142555,67127.0,67114.0,0.10687566]
[1773004078187,0.15642555,67127.0,67114.0,0.10687566]
[1773004078533,0.15142555,67127.0,67114.0,0.10687566]
[1773004078863,0.15142555,67127.0,67111.0,0.07618315]
[1773004078864,0.16142555,67123.0,67111.0,0.07618289]
[1773004079013,0.01801549,67124.0,67111.0,0.07618289]
[1773004079014,0.16290555,67122.0,67111.0,0.07618289]
[1773004079418,0.16290555,67122.0,67111.0,0.10855904]
[1773004079790,0.16290555,67122.0,67111.0,0.10707904]
[1773004080717,0.07449233,67121.0,67111.0,0.10707904]
[1773004080936,0.07449233,67121.0,67111.0,0.0002]
[1773004081143,0.23591788,67121.0,67111.0,0.0002]
[1773004083593,0.00170001,67122.0,67111.0,0.0002]
[1773004083912,0.00170001,67129.0,67116.0,0.15132698]
[1773004084105,0.00170001,67129.0,67118.0,0.03237615]
[1773004085430,0.07470035,67132.0,67120.0,0.0193285]
[1773004085431,0.07470099,67132.0,67120.0,0.0193285]
[1773004085633,0.00148,67131.0,67122.0,0.0184544]
[1773004085804,0.00148,67131.0,67121.0,0.13739851]
[1773004086010,0.07470069,67132.0,67122.0,0.01846265]
[1773004086159,0.00148,67131.0,67122.0,0.01846265]
[1773004086882,0.00144,67131.0,67122.0,0.01846265]
[1773004088011,0.07448234,67130.0,67123.0,0.07449011]
[1773004090879,0.00144,67131.0,67122.0,0.07449047]
[1773004090998,0.00556,67133.0,67123.0,0.02961666]
[1773004091203,0.00148,67132.0,67125.0,0.02961666]
[1773004091856,0.00148,67132.0,67125.0,0.02944806]
[1773004092059,0.00022001,67134.0,67125.0,0.02944806]
[1773004092257,0.00148,67133.0,67125.0,0.02944806]
[1773004092464,0.00148,67133.0,67125.0,0.03044806]
[1773004092669,0.00148,67133.0,67125.0,0.02944806]
[1773004092871,0.00170001,67133.0,67125.0,0.02944806]
[1773004093070,0.00148,67132.0,67126.0,0.10410344]
[1773004093246,0.0746588,67138.0,67127.0,0.02961666]
[1773004093510,0.07486821,67148.0,67128.0,0.00148]
[1773004093511,0.00040521,67148.0,67128.0,0.00148]
[1773004093715,0.00170001,67147.0,67131.0,0.02961666]
[1773004094010,0.00170001,67147.0,67135.0,0.02961666]
[1773004094528,0.00148,67146.0,67135.0,0.02961666]
[1773004094925,0.07468443,67147.0,67135.0,0.02961666]
[1773004095145,0.00148,67145.0,67137.0,0.02961666]
[1773004095651,0.00069001,67156.0,67138.0,0.14502095]
[1773004095845,0.15110549,67155.0,67139.0,0.02961666]
[1773004097444,0.15110549,67155.0,67140.0,0.07447125]
[1773004097600,0.15110549,67155.0,67141.0,0.02961666]
[1773004098083,0.03212478,67153.0,67124.0,0.14502095]
[1773004098211,0.14962549,67150.0,67130.0,0.02961666]
[1773004098404,0.03212478,67147.0,67130.0,0.02961666]
[1773004098649,0.18175027,67147.0,67130.0,0.02961666]
[1773004099023,0.14962549,67145.0,67127.0,0.02969945]
[1773004099246,0.03212478,67142.0,67127.0,0.10418462]
[1773004099445,0.22409785,67139.0,67127.0,8.279e-05]
[1773004099646,0.14962549,67137.0,67127.0,8.279e-05]
[1773004101186,0.00148,67136.0,67127.0,8.279e-05]
[1773004103091,0.14962549,67137.0,67127.0,8.279e-05]
[1773004103244,0.00148,67136.0,67127.0,8.279e-05]
[1773004106485,0.00148,67136.0,67125.0,0.07440205]
[1773004106685,0.00159905,67136.0,67125.0,0.07440205]
[1773004108154,0.00159905,67136.0,67127.0,0.0002]
[1773004110869,0.18175027,67135.0,67127.0,0.0002]
[1773004111070,0.18323027,67135.0,67127.0,0.0002]
[1773004111671,0.00148,67135.0,67127.0,0.0002]
[1773004111998,0.00148,67135.0,67127.0,0.02981666]
[1773004113119,0.00148,67135.0,67128.0,0.07448456]
[1773004113534,0.00148,67135.0,67128.0,0.10410122]
[1773004114031,0.00148,67135.0,67128.0,0.10426322]
[1773004114788,0.00148,67135.0,67128.0,0.10422322]
[1773004115666,0.00148,67134.0,67128.0,0.10442322]
[1773004116010,0.00148,67134.0,67128.0,0.08882357]